bitfinex/quotes_SOLUSD_20260226
["timestamp","ask_amount","ask_price","bid_price","bid_amount"]
[1772072416339,0.63908992,87.899,87.858,0.64023374]
[1772072416519,0.63908992,87.899,87.861,0.64023374]
[1772072417545,0.63908992,87.897,87.863,0.64023374]
[1772072418444,90.98226452,87.93,87.834,3.69383402]
[1772072418445,11.37498012,87.913,87.871,0.64023374]
[1772072419648,11.37421137,87.919,87.881,0.64023374]
[1772072420135,0.63908992,87.909,87.881,0.64023374]
[1772072420337,0.63908992,87.909,87.875,0.64023374]
[1772072421538,0.63908992,87.907,87.875,0.64023374]
[1772072421749,0.63908992,87.899,87.852,0.64023374]
[1772072421948,10.20243325,87.89,87.852,0.64023374]
[1772072422144,0.63908992,87.889,87.852,0.64023374]
[1772072422353,0.63908992,87.879,87.841,0.64023374]
[1772072422651,0.63908992,87.879,87.842,0.64023374]
[1772072423656,11.37941236,87.878,87.844,0.64023374]
[1772072424754,0.63908992,87.875,87.844,0.64023374]
[1772072424942,9.56334333,87.88,87.845,0.64023374]
[1772072425146,28.4447059,87.89,87.844,11.38371363]
[1772072425147,9.56334333,87.89,87.851,0.64023374]
[1772072425455,11.37764784,87.892,87.861,0.64023374]
[1772072425652,11.37689683,87.898,87.861,0.64023374]
[1772072425854,11.37475259,87.914,87.871,0.59262533]
[1772072426051,11.37375635,87.922,87.89,9.56334333]
[1772072426357,11.37345889,87.924,87.891,0.59262533]
[1772072426838,11.37281215,87.929,87.893,0.59262533]
[1772072427155,0.58574467,87.928,87.893,0.59262533]
[1772072429459,11.37307084,87.927,87.895,0.59262533]
[1772072429641,29.01526551,87.937,87.894,11.37734088]
[1772072429642,0.58574467,87.937,87.901,0.59262533]
[1772072429840,11.3725085,87.932,87.901,0.59262533]
[1772072430036,0.58574467,87.937,87.901,0.59262533]
[1772072430250,11.9575589,87.937,87.901,0.59262533]
[1772072430948,45.45512567,87.999,87.911,0.59262533]
[1772072430949,28.4221754,87.96,87.911,0.59262533]
[1772072431149,28.4221754,87.96,87.921,0.59262533]
[1772072431150,11.36893325,87.959,87.921,0.59262533]
[1772072432667,9.56334333,87.97,87.931,0.56009891]
[1772072432872,9.56334333,87.96,87.931,0.56009891]
[1772072433036,0.60699115,87.959,87.931,0.56009891]
[1772072433366,0.60699115,87.959,87.922,0.56009891]
[1772072434263,11.3690625,87.958,87.924,0.56009891]
[1772072434764,0.60699115,87.957,87.924,0.56009891]
[1772072435641,0.60699115,87.967,87.924,0.56009891]
[1772072435839,0.60699115,87.967,87.922,11.37368326]
[1772072435840,11.36837659,87.964,87.931,0.56009891]
[1772072436861,0.60699115,87.963,87.923,0.56009891]
[1772072437253,0.60699115,87.959,87.923,0.56009891]
[1772072438547,0.60699115,87.959,87.925,0.56009891]
[1772072438848,0.60699115,87.957,87.925,0.56009891]
[1772072439050,0.60699115,87.949,87.903,0.28432314]
[1772072439245,0.60699115,87.949,87.911,0.56009891]
[1772072439760,0.60699115,87.949,87.894,3.69383402]
[1772072439761,0.60699115,87.957,87.921,0.56009891]
[1772072439951,0.60699115,87.957,87.877,187.76244064]
[1772072439952,0.60699115,87.949,87.913,0.56009891]
[1772072441064,11.36893325,87.959,87.921,0.56009891]
[1772072441475,11.36893325,87.959,87.931,0.56009891]
[1772072441766,0.60699115,87.958,87.922,0.56009891]
[1772072442146,0.60699115,87.958,87.917,0.56009891]
[1772072442850,9.56334333,87.96,87.727,31.85932111]
[1772072442851,0.60699115,87.949,87.908,0.56009891]
[1772072443057,0.60699115,87.949,87.911,0.56009891]
[1772072443255,39.79217117,87.957,87.921,0.56009891]
[1772072443451,0.60699115,87.956,87.921,0.56009891]
[1772072443658,0.60699115,87.956,87.91,9.56334333]
[1772072443659,0.60699115,87.949,87.913,0.56009891]
[1772072444048,39.79217117,87.957,87.921,0.56009891]
[1772072444263,40.39916232,87.957,87.921,0.56009891]
[1772072444660,0.60699115,87.956,87.921,0.56009891]
[1772072445253,9.56334333,87.95,87.911,0.56009891]
[1772072445459,0.60699115,87.949,87.911,0.56009891]
[1772072445666,0.60699115,87.949,87.912,0.56009891]
[1772072447557,0.60699115,87.947,87.912,0.56009891]
[1772072448159,0.60699115,87.947,87.921,0.56009891]
[1772072448767,11.3703552,87.948,87.921,0.56009891]
[1772072448967,0.60699115,87.975,87.941,0.56009891]
[1772072449168,0.60699115,87.969,87.928,0.56009891]
[1772072449362,0.60699115,87.969,87.931,0.56009891]
[1772072449761,0.60699115,87.967,87.931,0.56009891]
[1772072450661,0.60699115,87.967,87.904,3.69383402]
[1772072450662,0.60699115,87.959,87.912,0.56009891]
[1772072450867,0.60699115,87.959,87.921,0.56009891]
[1772072451670,11.3690625,87.958,87.921,0.56009891]
[1772072451977,0.60699115,87.957,87.921,0.56009891]
[1772072452162,0.60699115,87.957,87.923,0.56009891]
[1772072455286,11.36932102,87.956,87.925,0.56009891]
[1772072457486,0.60699115,87.957,87.927,0.53613837]
[1772072457685,11.93574992,87.956,87.927,0.53613837]
[1772072458187,0.5664289,87.955,87.927,0.53613837]
[1772072460591,0.5664289,87.954,87.927,0.53613837]
[1772072460772,0.5664289,87.954,87.92,9.5870193]
[1772072461476,0.5664289,87.954,87.921,0.53613837]
[1772072461878,0.5664289,87.954,87.922,0.53613837]
[1772072462596,9.5870193,87.98,87.925,0.28432314]
[1772072462776,0.5664289,87.982,87.951,0.53613837]
[1772072462977,9.5870193,87.99,87.951,0.53613837]
[1772072462978,0.5664289,87.992,87.951,0.53613837]
[1772072463185,0.5664289,87.999,87.961,0.53613837]
[1772072466583,9.5870193,88.01,87.971,0.53613837]
[1772072466772,45.42912506,88.05,87.962,11.3685455]
[1772072466773,0.5664289,88.026,87.981,0.53613837]
[1772072466976,9.5870193,88.02,87.981,0.53613837]
[1772072467290,0.5664289,88.019,87.981,0.53613837]
[1772072467687,11.36131245,88.018,87.981,0.53613837]
[1772072467878,0.5664289,88.009,87.981,0.53613837]
[1772072468495,0.5664289,88.009,87.97,0.53613837]
[1772072468674,0.5664289,87.999,87.97,0.53613837]
[1772072469295,0.5664289,88.009,87.971,0.53613837]
[1772072470095,11.36218281,88.012,87.981,0.53613837]
[1772072470299,11.92861171,88.012,87.981,0.53613837]
[1772072470676,0.5664289,88.012,87.981,0.53613837]
[1772072471517,11.36207176,88.013,87.981,0.53613837]
[1772072471807,11.36006251,88.028,87.991,0.53613837]
[1772072472200,11.36006251,88.028,87.993,0.53613837]
[1772072472397,11.36006251,88.028,87.992,11.36466951]
[1772072472398,11.36006251,88.028,88.001,0.53613837]
[1772072472980,0.1,88.04,88.011,0.53613837]
[1772072473383,10.2534482,88.04,88.011,0.53613837]
[1772072473581,0.6664289,88.04,88.011,0.53613837]
[1772072474101,11.35860243,88.039,88.011,0.53613837]
[1772072474289,0.5664289,88.038,88.001,0.53613837]
[1772072474891,0.5664289,88.038,88.011,0.53613837]
[1772072475682,0.5664289,88.038,88.001,0.53613837]
[1772072475886,0.5664289,88.029,87.993,0.53613837]
[1772072476083,9.5870193,88.03,87.993,0.53613837]
[1772072476084,9.5870193,88.02,87.993,0.53613837]
[1772072476685,11.36118338,88.019,87.993,0.53613837]
[1772072476893,0.5664289,88.018,87.993,0.53613837]
[1772072477788,0.5664289,88.018,87.994,0.53613837]
[1772072478590,11.36144153,88.017,87.994,0.53613837]
[1772072479615,0.5664289,88.018,87.994,0.53613837]
[1772072480104,4.14104234,88.01,87.971,0.53613837]
[1772072480300,0.5664289,87.999,87.972,0.53613837]
[1772072480602,0.5664289,87.997,87.961,0.53613837]
[1772072480796,0.5664289,87.989,87.961,0.53613837]
[1772072482399,3.57461344,87.99,87.961,0.53613837]
[1772072482604,0.1,88.11,87.961,0.53613837]
[1772072482605,11.36333607,88.003,87.961,0.53613837]
[1772072483008,3.57461344,88.0,87.963,0.53613837]
[1772072483192,0.5664289,87.999,87.963,0.53613837]
[1772072483511,0.5664289,87.989,87.963,0.53613837]
[1772072483896,3.57461344,87.99,87.963,0.53613837]
[1772072484513,3.57461344,88.0,87.963,0.53613837]
[1772072484910,0.5664289,87.999,87.963,0.53613837]
[1772072485303,0.5664289,87.997,87.963,0.53613837]
[1772072485520,0.5664289,87.979,87.909,0.28432314]
[1772072485816,0.5664289,87.979,87.948,0.53613837]
[1772072487511,11.36647798,87.978,87.948,0.53613837]
[1772072488519,0.53083133,87.988,87.951,0.52674395]
[1772072488712,11.36505699,87.989,87.951,0.52674395]
[1772072489316,11.36505699,87.989,87.961,0.52674395]
[1772072489813,0.53083133,87.994,87.961,0.52674395]
[1772072489999,0.53083133,87.994,87.963,0.52674395]
[1772072492016,11.8952862,87.994,87.965,0.52674395]
[1772072494427,11.8952862,87.994,87.966,11.36802855]
[1772072494603,0.53037786,87.993,87.965,0.52674395]
[1772072495729,0.53037786,87.979,87.942,0.54456463]
[1772072496020,0.53037786,87.969,87.932,0.54456463]
[1772072496410,0.53037786,87.969,87.93,9.58011998]
[1772072496411,11.36777009,87.968,87.933,11.37229481]
[1772072496611,11.36645723,87.979,87.941,0.54456463]
[1772072498120,37.99244979,87.99,87.914,3.69383402]
[1772072498121,11.89582236,87.986,87.951,0.54456463]
[1772072498832,0.53037786,87.985,87.951,0.54456463]
[1772072500715,37.99274988,87.99,87.951,0.54456463]
[1772072500716,11.36570285,87.984,87.951,0.54456463]
[1772072500929,0.53037786,87.983,87.951,0.54456463]
[1772072503234,37.99274988,87.99,87.951,0.54456463]
[1772072503235,0.53037786,87.981,87.951,0.54456463]
[1772072505244,11.36621959,87.98,87.951,0.54456463]
[1772072505535,11.36621959,87.98,87.93,0.54456463]
[1772072505536,0.53037786,87.959,87.93,0.54456463]
[1772072507041,4.10811362,87.95,87.923,0.54456463]
[1772072507419,0.53037786,87.948,87.923,0.54456463]
[1772072507938,11.36961474,87.954,87.923,0.54456463]
[1772072508117,11.36764087,87.969,87.931,0.54456463]
[1772072508324,11.16764086,87.969,87.931,0.54456463]
[1772072508931,0.53037786,87.959,87.931,0.54456463]
[1772072510543,11.3690625,87.958,87.931,0.54456463]
[1772072511533,11.89944036,87.958,87.931,0.54456463]
[1772072512441,0.53037786,87.957,87.922,0.54456463]
[1772072513323,11.36932102,87.956,87.923,11.37358825]
[1772072513522,0.53037786,87.955,87.924,0.54456463]
[1772072518326,11.87469897,87.954,87.926,0.51011351]
[1772072518722,0.50511942,87.953,87.926,0.51011351]
[1772072521049,28.42247248,87.959,87.926,0.51011351]
[1772072521050,11.87495751,87.952,87.926,0.51011351]
[1772072521243,0.50511942,87.951,87.926,0.51011351]
[1772072522337,0.50511942,87.957,87.928,0.51011351]
[1772072523335,11.36932102,87.956,87.93,0.51011351]
[1772072523529,11.36932102,87.956,87.911,62.2]
[1772072523530,0.50511942,87.949,87.896,0.51011351]
[1772072523729,0.50511942,87.939,87.896,0.51011351]
[1772072523953,0.50511942,87.939,87.901,0.51011351]
[1772072524153,0.50511942,87.939,87.89,3.57938623]
[1772072524154,3.57938623,87.93,87.89,3.57938623]
[1772072524335,0.50511942,87.929,87.891,0.51011351]
[1772072524652,3.57938623,87.94,87.891,0.51011351]
[1772072524843,0.50511942,87.95,87.92,3.57938623]
[1772072525043,0.50511942,87.95,87.921,0.51011351]
[1772072526751,0.50511942,87.948,87.921,0.51011351]
[1772072527355,0.50511942,87.939,87.903,0.51011351]
[1772072527958,0.50511942,87.939,87.905,0.51011351]
[1772072528777,49.03425184,88.0,87.921,0.51011351]
[1772072528778,0.50511942,87.948,87.921,0.51011351]
[1772072530460,0.50511942,87.948,87.922,11.37371761]
[1772072530760,0.50511942,87.948,87.923,0.51011351]
[1772072533539,11.87559548,87.948,87.923,0.51011351]
[1772072535767,0.50511942,87.947,87.916,0.51011351]
[1772072539968,0.50511942,87.947,87.887,62.2]
[1772072539969,0.50511942,87.929,87.891,0.51011351]
[1772072540474,0.50511942,87.929,87.901,0.51011351]
[1772072541255,0.50511942,87.939,87.901,0.51011351]
[1772072541973,11.3716482,87.938,87.901,11.37635662]
[1772072542279,0.50511942,87.937,87.902,0.51011351]
[1772072544679,0.50511942,87.935,87.904,0.51011351]
[1772072545581,11.37190684,87.936,87.874,0.51011351]
[1772072545582,0.50511942,87.929,87.874,0.51011351]
[1772072545753,39.80167394,87.936,87.891,0.51885492]
[1772072545754,0.50511942,87.919,87.891,0.51885492]
[1772072546465,0.52405429,87.909,87.874,0.51885492]
[1772072546653,11.37539956,87.909,87.871,0.51885492]
[1772072547261,0.52405429,87.929,87.891,0.51885492]
[1772072547462,0.52405429,87.928,87.891,0.51885492]
[1772072548566,0.52405429,87.926,87.893,0.51885492]
[1772072548774,0.52405429,87.926,87.901,0.51885492]
[1772072550279,11.37307084,87.927,87.901,0.51885492]
[1772072550582,0.52405429,87.932,87.901,0.51885492]
[1772072550881,0.52405429,87.919,87.886,0.51885492]
[1772072551283,0.52405429,87.909,87.87,3.57938623]
[1772072551572,0.52405429,87.909,87.872,0.51885492]
[1772072552654,11.37552896,87.908,87.873,11.38005985]
[1772072552859,28.43453175,87.922,87.874,0.475508]
[1772072552860,11.37496729,87.913,87.874,0.475508]
[1772072553075,11.37496729,87.913,87.881,0.475508]
[1772072553482,11.90008337,87.913,87.881,0.475508]
[1772072554273,0.52511608,87.912,87.881,0.475508]
[1772072554670,11.37552896,87.908,87.873,11.38005985]
[1772072554877,0.52511608,87.907,87.874,0.475508]
[1772072555079,11.37552896,87.908,87.867,0.475508]
[1772072555080,0.52511608,87.899,87.867,0.475508]
[1772072555476,11.37552896,87.908,87.871,0.475508]
[1772072555981,0.52511608,87.907,87.871,0.475508]
[1772072556686,0.52511608,87.907,87.866,0.28432314]
[1772072556874,0.52511608,87.905,87.867,0.475508]
[1772072558282,0.52511608,87.889,87.852,0.475508]
[1772072558794,0.52511608,87.889,87.85,3.77938623]
[1772072558795,0.52511608,87.877,87.85,0.2]
[1772072559370,3.57938623,87.87,87.85,0.2]
[1772072559570,0.52511608,87.869,87.85,0.2]
[1772072561589,0.52511608,87.867,87.85,0.2]
[1772072561782,0.52511608,87.867,87.832,0.2766158]
[1772072561983,0.52511608,87.867,87.832,11.66191185]
[1772072562182,0.52511608,87.859,87.832,0.2766158]
[1772072563581,11.38200277,87.858,87.832,0.2766158]
[1772072563790,0.52511608,87.857,87.832,0.2766158]
[1772072564486,0.52511608,87.857,87.832,0.7521238]
[1772072565294,11.90323368,87.888,87.837,0.475508]
[1772072565502,11.90323368,87.888,87.851,0.475508]
[1772072565793,0.52511608,87.887,87.853,0.475508]
[1772072566306,11.374832,87.914,87.871,0.475508]
[1772072566489,0.52511608,87.913,87.871,0.475508]
[1772072569096,0.52511608,87.913,87.881,0.475508]
[1772072569097,11.37501137,87.912,87.881,0.475508]
[1772072569906,0.52511608,87.911,87.881,0.475508]
[1772072570705,11.37501137,87.912,87.845,0.475508]
[1772072570706,0.52511608,87.889,87.845,0.475508]
[1772072570903,142.18764217,87.912,87.845,0.475508]
[1772072570904,3.57938623,87.88,87.846,0.475508]
[1772072571101,3.57938623,87.87,87.846,0.475508]
[1772072571408,3.57938623,87.86,87.837,0.475508]
[1772072571793,3.57938623,87.86,87.832,0.2766158]
[1772072571995,0.52511608,87.869,87.834,0.475508]
[1772072572696,3.57938623,87.86,87.834,0.475508]
[1772072573012,0.52511608,87.869,87.834,0.475508]
[1772072573388,0.52511608,87.867,87.834,0.475508]
[1772072573808,11.38007845,87.873,87.841,0.475508]
[1772072574009,11.37876494,87.883,87.851,0.475508]
[1772072574207,106.06901777,87.912,87.834,11.38509444]
[1772072574208,0.52511608,87.895,87.861,0.475508]
[1772072574515,11.37734088,87.894,87.861,0.475508]
[1772072574895,11.90245696,87.894,87.861,0.475508]
[1772072575214,0.52511608,87.893,87.861,0.475508]
[1772072575712,11.90271586,87.892,87.861,0.475508]
[1772072576116,11.37702378,87.897,87.863,0.50782652]
[1772072576619,3.58734609,87.91,87.871,0.50782652]
[1772072576620,11.37552896,87.908,87.871,0.50782652]
[1772072576806,11.84712304,87.908,87.871,0.50782652]
[1772072577113,0.47159408,87.907,87.871,0.50782652]
[1772072577718,40.28260423,87.916,87.88,3.58734609]
[1772072578022,0.47159408,87.915,87.881,0.50782652]
[1772072579001,0.47159408,87.909,87.873,0.50782652]
[1772072579709,0.47159408,87.907,87.873,0.50782652]
[1772072580503,0.47159408,87.907,87.87,3.58734609]
[1772072580702,0.47159408,87.907,87.871,11.38031887]
[1772072580903,0.47159408,87.907,87.872,0.50782652]
[1772072581811,11.37578777,87.906,87.872,0.50782652]
[1772072582017,0.47159408,87.905,87.872,0.50782652]
[1772072584021,0.47159408,87.914,87.874,0.50782652]
[1772072584230,4.05894017,87.92,87.881,0.50782652]
[1772072584823,0.47159408,87.918,87.881,0.50782652]
[1772072585023,0.47159408,87.899,87.86,3.58734609]
[1772072585230,0.47159408,87.899,87.86,4.09517261]
[1772072585403,0.47159408,87.899,87.861,0.50782652]
[1772072585726,0.47159408,87.889,87.851,0.50782652]
[1772072586120,0.47159408,87.879,87.841,0.50782652]
[1772072587218,0.47159408,87.869,87.841,0.50782652]
[1772072587407,0.47159408,87.869,87.833,0.50782652]
[1772072587607,3.58734609,87.86,87.833,0.50782652]
[1772072587808,0.47159408,87.859,87.833,0.50782652]
[1772072588313,11.38200277,87.858,87.833,0.50782652]
[1772072588633,3.58734609,87.88,87.833,0.50782652]
[1772072588634,4.05894017,87.89,87.851,0.50782652]
[1772072588934,11.37798814,87.889,87.861,0.50782652]
[1772072590917,11.84854664,87.897,87.861,0.50782652]
[1772072591223,0.47159408,87.896,87.861,0.50782652]
[1772072591927,0.47159408,87.896,87.863,0.50782652]
[1772072593601,11.37721144,87.895,87.863,0.50782652]
[1772072595012,11.84880552,87.895,87.863,0.50782652]
[1772072595223,0.47159408,87.894,87.863,0.50782652]
[1772072597031,11.37721144,87.895,87.863,0.50782652]
[1772072597213,11.37721144,87.895,87.864,11.38122553]
[1772072597417,11.37721144,87.895,87.865,0.50782652]
[1772072597622,0.47159408,87.894,87.865,0.50782652]
[1772072598030,0.47159408,87.889,87.858,0.50782652]
[1772072599541,0.47159408,87.869,87.83,21.18704084]
[1772072599715,9.60152068,87.86,87.83,0.2]
[1772072599921,0.47159408,87.859,87.83,0.2]
[1772072601528,0.47159408,87.857,87.83,0.70782652]
[1772072604643,11.38226188,87.856,87.832,0.78444232]
[1772072604859,0.47159408,87.855,87.832,0.2766158]
[1772072605150,0.47159408,87.849,87.82,0.70782652]
[1772072606743,0.48967019,87.847,87.821,0.47621815]
[1772072607534,0.48967019,87.847,87.82,0.2]
[1772072608432,39.84154448,87.848,87.81,9.80152068]
[1772072608433,0.48967019,87.829,87.81,0.2]
[1772072608631,0.48967019,87.827,87.81,0.2]
[1772072609941,11.38531809,87.833,87.81,0.67621815]
[1772072610139,0.48967019,87.832,87.81,0.67621815]
[1772072610541,3.59022837,87.83,87.81,0.2]
[1772072610742,0.48967019,87.828,87.81,0.2]
[1772072612546,11.38440398,87.84,87.811,0.46884034]
[1772072613133,3.59022837,87.85,87.811,0.46884034]
[1772072613338,0.49639584,87.839,87.811,0.46884034]
[1772072614732,0.49639584,87.839,87.811,11.85693522]
[1772072614941,11.38316884,87.849,87.812,0.46884034]
[1772072615140,11.38316884,87.849,87.821,0.46884034]
[1772072616541,11.38316884,87.849,87.822,0.46884034]
[1772072616948,11.87956468,87.849,87.822,0.46884034]
[1772072617149,0.49639584,87.848,87.822,0.46884034]
[1772072617847,0.49639584,87.857,87.822,0.46884034]
[1772072618037,0.49639584,87.855,87.822,0.46884034]
[1772072619761,39.83791658,87.856,87.81,0.2]
[1772072619762,0.49639584,87.849,87.81,0.2]
[1772072619954,0.49639584,87.837,87.81,0.2]
[1772072621562,11.87959736,87.849,87.812,0.46884034]
[1772072621746,11.38262757,87.854,87.821,0.46884034]
[1772072622066,0.49639584,87.853,87.821,0.46884034]
[1772072624064,3.59022837,87.85,87.821,0.46884034]
[1772072625451,106.1042473,87.882,87.81,3.79022837]
[1772072625452,11.38114539,87.865,87.831,0.46884034]
[1772072626168,45.50822062,87.897,87.81,0.2]
[1772072626169,0.49639584,87.859,87.819,0.46884034]
[1772072626356,0.49639584,87.849,87.819,0.46884034]
[1772072628672,0.49639584,87.847,87.819,0.46884034]
[1772072631276,11.38329842,87.848,87.821,0.46884034]
[1772072631470,11.38262369,87.854,87.821,0.46884034]
[1772072632958,11.38197796,87.859,87.821,0.46884034]
[1772072633256,3.59022837,87.87,87.832,11.38537207]
[1772072633257,11.3805779,87.869,87.832,11.38537207]
[1772072633457,11.37972768,87.876,87.851,0.46884034]
[1772072634761,3.58669967,87.87,87.841,0.46884034]
[1772072634959,0.49639584,87.869,87.833,0.46884034]
[1772072638477,0.49695903,87.867,87.835,0.50451765]
[1772072640289,0.49695903,87.892,87.841,0.50451765]
[1772072640477,0.49695903,87.889,87.841,0.50451765]
[1772072640662,0.49695903,87.896,87.861,0.50451765]
[1772072641466,0.49695903,87.889,87.861,0.50451765]
[1772072642398,0.49695903,87.898,87.861,0.50451765]
[1772072643079,28.43813358,87.911,87.861,0.50451765]
[1772072643080,0.49695903,87.896,87.862,0.50451765]
[1772072643286,0.49695903,87.889,87.851,0.50451765]
[1772072645667,11.37782401,87.891,87.861,0.50451765]
[1772072646067,0.49695903,87.89,87.861,0.50451765]
[1772072647401,0.49695903,87.888,87.861,0.50451765]
[1772072647693,0.49695903,87.918,87.881,0.50451765]
[1772072648478,0.49695903,87.918,87.891,0.50451765]
[1772072649584,11.37436445,87.917,87.891,0.50451765]
[1772072650493,0.49695903,87.916,87.891,0.50451765]
[1772072652884,0.49695903,87.914,87.891,0.50451765]
[1772072653504,0.49695903,87.928,87.891,0.50451765]
[1772072653801,11.57141126,87.94,87.921,0.50451765]
[1772072653980,0.49695903,87.939,87.913,0.50451765]
[1772072655309,0.49695903,87.937,87.905,0.50451765]
[1772072655684,0.49695903,87.937,87.898,0.50451765]
[1772072655906,0.49695903,87.937,87.89,3.58669967]
[1772072655907,0.49695903,87.929,87.892,11.37759978]
[1772072656094,0.49695903,87.929,87.893,0.50451765]
[1772072656894,0.49695903,87.937,87.901,0.50451765]
[1772072658017,0.49695903,87.935,87.902,11.37630543]
[1772072658210,0.49695903,87.935,87.903,0.50451765]
[1772072659992,11.37216548,87.934,87.903,0.50451765]
[1772072660988,0.2,87.94,87.911,0.50451765]
[1772072661192,0.2,87.94,87.921,0.50451765]
[1772072662588,0.2,87.94,87.923,0.50451765]
[1772072663107,11.37151889,87.939,87.912,0.50451765]
[1772072663307,0.49695903,87.938,87.912,0.50451765]
[1772072663898,11.37151889,87.939,87.912,0.50451765]
[1772072666925,11.37177752,87.937,87.912,0.50451765]
[1772072667801,0.4807773,87.936,87.905,0.49981923]
[1772072668003,0.4807773,87.936,87.865,103.1]
[1772072668004,0.4807773,87.929,87.89,3.58669967]
[1772072668306,0.4807773,87.929,87.891,11.87754846]
[1772072668506,0.4807773,87.929,87.892,0.49981923]
[1772072669419,0.4807773,87.927,87.88,3.58669967]
[1772072669732,39.80529523,87.928,87.856,62.2]
[1772072669733,0.4807773,87.909,87.87,3.58669967]
[1772072670144,0.4807773,87.899,87.868,0.49981923]
[1772072670828,3.58669967,87.9,87.852,3.69383402]
[1772072670829,0.4807773,87.909,87.871,0.49981923]
[1772072671832,0.4807773,87.907,87.873,0.49981923]
[1772072673608,0.4807773,87.907,87.871,11.38030127]
[1772072673609,0.48895404,87.939,87.89,3.58669967]
[1772072673822,0.48895404,87.938,87.903,0.47929648]
[1772072674024,0.48895404,87.936,87.903,0.47929648]
[1772072674227,0.48895404,87.929,87.903,0.47929648]
[1772072674732,0.48895404,87.929,87.891,0.47929648]
[1772072676346,0.48895404,87.927,87.891,0.47929648]
[1772072677440,11.37320019,87.926,87.901,0.47929648]
[1772072677641,11.37258954,87.931,87.901,0.47929648]
[1772072677840,11.86154358,87.931,87.901,0.47929648]
[1772072680134,0.48895404,87.93,87.901,0.47929648]
[1772072682334,0.48895404,87.918,87.847,11.38331053]
[1772072682534,130.78733977,87.929,87.847,11.38331053]
[1772072682535,3.58669967,87.89,87.851,0.47929648]
[1772072682735,0.48895404,87.889,87.854,0.28432314]
[1772072682932,0.48895404,87.889,87.857,0.47929648]
[1772072683133,0.48895404,87.889,87.851,0.47929648]
[1772072684235,0.48895404,87.887,87.851,0.47929648]
[1772072685256,0.48895404,87.879,87.842,0.28432314]
[1772072685443,0.48895404,87.879,87.846,0.28432314]
[1772072685643,0.48895404,87.879,87.846,0.76361962]
[1772072685945,0.48895404,87.879,87.847,0.47929648]
[1772072686254,0.48895404,87.879,87.841,11.38416436]
[1772072686255,0.48895404,87.876,87.841,0.47929648]
[1772072686453,0.48895404,87.874,87.841,0.47929648]
[1772072686952,0.48895404,87.874,87.843,0.47929648]
[1772072688658,0.48895404,87.872,87.843,0.47929648]
[1772072688974,11.38005985,87.873,87.831,0.47929648]
[1772072688975,0.48895404,87.869,87.831,0.47929648]
[1772072690854,3.58669967,87.86,87.831,0.47929648]
[1772072691048,0.48895404,87.859,87.831,0.47929648]
[1772072692969,11.38096647,87.866,87.833,0.47929648]
[1772072693165,11.86992051,87.866,87.833,0.47929648]
[1772072693470,0.48895404,87.865,87.833,0.47929648]
[1772072694978,0.48895404,87.869,87.833,0.47929648]
[1772072695349,11.38070742,87.868,87.835,0.47929648]
[1772072695750,11.86966146,87.868,87.835,0.47929648]
[1772072695951,0.48458226,87.867,87.835,0.47929648]
[1772072697472,11.86554873,87.866,87.837,0.49002769]
[1772072697977,0.48458226,87.865,87.837,0.49002769]
[1772072699591,0.48458226,87.865,87.817,62.2]
[1772072699592,0.48458226,87.849,87.817,0.49002769]
[1772072701377,11.86606686,87.862,87.823,0.49002769]
[1772072701675,11.3814846,87.862,87.831,0.49002769]
[1772072702574,11.38092261,87.867,87.84,3.5866011]
[1772072702778,11.38092261,87.867,87.841,0.49002769]
[1772072704571,0.48458226,87.868,87.841,0.49002769]
[1772072705568,102.38530187,87.904,87.832,11.38529398]
[1772072705569,0.48458226,87.884,87.843,0.49002769]
[1772072705774,0.48458226,87.884,87.851,0.49002769]
[1772072705987,0.48458226,87.887,87.857,0.49002769]
[1772072706175,0.48458226,87.887,87.846,0.49002769]
[1772072706583,39.82341161,87.888,87.84,3.5866011]
[1772072706584,0.48458226,87.885,87.848,0.49002769]
[1772072706973,4.07118336,87.88,87.848,0.49002769]
[1772072707269,0.48458226,87.879,87.848,0.49002769]
[1772072709188,11.37941236,87.878,87.848,0.49002769]
[1772072709586,0.48458226,87.877,87.831,0.28432314]
[1772072709768,0.48458226,87.877,87.838,0.49002769]
[1772072710387,0.48458226,87.869,87.838,0.49002769]
[1772072711793,0.48458226,87.867,87.838,0.49002769]
[1772072712686,0.48458226,87.867,87.831,0.49002769]
[1772072713891,0.48458226,87.865,87.831,0.49002769]
[1772072714192,0.48458226,87.865,87.833,0.49002769]
[1772072716183,0.48458226,87.863,87.833,0.49002769]
[1772072716596,0.48458226,87.863,87.835,0.49002769]
[1772072716790,28.45183887,87.868,87.834,11.38511282]
[1772072716791,0.48458226,87.878,87.841,0.49002769]
[1772072716976,11.37954185,87.877,87.841,0.49002769]
[1772072717376,0.48458226,87.876,87.841,0.49002769]
[1772072717576,0.48458226,87.869,87.841,0.49002769]
[1772072718486,0.48458226,87.867,87.834,11.87514051]
[1772072718690,0.48458226,87.867,87.834,0.49002769]
[1772072718993,0.48458226,87.875,87.841,0.49002769]
[1772072723986,0.48458226,87.873,87.841,0.49002769]
[1772072724186,0.48458226,87.869,87.831,62.2]
[1772072724388,0.48458226,87.869,87.832,0.49002769]
[1772072724799,0.48458226,87.859,87.832,0.49002769]
[1772072726401,0.47512588,87.857,87.832,0.49002769]